[Event "EYCC Open U16 2018"]
[Site "Riga"]
[Date "2018.08.22"]
[Round "3"]
[White "Pacan Milej, Kosma"]
[Black "Stefansson, Vignir Vatnar"]
[Result "0-1"]
[ECO "B01"]
[WhiteElo "2354"]
[BlackElo "2260"]
[Annotator "NA"]
[PlyCount "72"]
[EventDate "2018.08.20"]
[EventType "swiss"]
[EventCountry "LAT"]
[SourceTitle "playchess.com"]
[Source "ChessBase"]
[SourceQuality "1"]
[TimeControl "40/5400+30:1800+30"]

1. e4 {[%emt 0:00:00]} d5 {[%emt 0:00:00]} 2. exd5 {[%emt 0:00:00]} Qxd5 {[%emt 0:00:00]} 3. Nc3 {[%emt 0:00:00]} Qd6 {[%emt 0:00:00]} 4. d4 {[%emt 0:00:08]} Nf6 {[%emt 0:00:00]} 5. Nf3 {[%emt 0:00:13]} c6 {[%emt 0:00:04]} 6. g3 {[%emt 0:00:08] B01: Scandinavian Defence} (6. Ne5 Nbd7 7. f4 Nb6 8. g4 g6 9. Bg2 Bg7 10. O-O O-O 11. f5 Rd8 12. Ne2 Nfd7 13. Nxf7 Kxf7 14. Bf4 {1-0 (43) Safarli,E (2657)-Hera,I (2620) Brest 2018}) 6... Bf5 {[%emt 0:00:05]} 7. Bg2 {[%emt 0:00:20]} e6 {[%emt 0:00:08]} 8. O-O {[%emt 0:00:35]} h6 {[%emt 0:00:05]} 9. a3 {[%emt 0:02:40]} Be7 {[%emt 0:02:50] LiveBook: 3 Games} 10. Bf4 {[%emt 0:11:50]} Qd8 {[%emt 0:00:11]} 11. Ne5 {[%emt 0:05:05]} O-O {[%emt 0:05:45]} 12. Qd2 {[%emt 0:09:45]} Nbd7 {[%emt 0:06:48]} 13. Rfe1 {[%emt 0:06:16]} Rc8 $146 {[%emt 0:23:41]} ({Predecessor:} 13... Nxe5 14. Bxe5 {½-½ (23) Limanovska,E (1642)-Jakenberg,J (2070) Palanga 2013}) 14. Rad1 {[%emt 0:09:44]} Nd5 {[%emt 0:02:47]} 15. Ne4 {[%emt 0:05:13]} N7f6 {[%emt 0:17:29]} 16. c4 {[%emt 0:09:58]} Nxe4 {[%emt 0:00:10]} 17. Bxe4 {[%emt 0:00:05]} Bxe4 {[%emt 0:00:08]} 18. Rxe4 {[%emt 0:00:15]} Nf6 {[%emt 0:00:10]} 19. Ree1 {[%emt 0:01:16]} b5 {[%emt 0:01:50]} 20. b3 {[%emt 0:06:15]} a5 {[%emt 0:02:49]} 21. Qc1 {[%emt 0:02:27]} Kh7 $14 {[%emt 0:09:16]} 22. Qb1+ {[%emt 0:07:45]} Kg8 {[%emt 0:00:13]} 23. Qc1 {[%emt 0:00:46]} Kh7 {[%emt 0:00:24]} 24. Qb1+ {[%emt 0:03:04]} Kg8 {[%emt 0:00:09]} 25. a4 {[%emt 0:04:38]} Qb6 {[%emt 0:04:39]} 26. axb5 {[%emt 0:04:54]} cxb5 {[%emt 0:00:08]} 27. d5 {[%emt 0:00:06]} Bc5 {[%emt 0:02:34]} 28. Nd3 {[%emt 0:01:55]} exd5 {[%emt 0:08:00]} 29. Nxc5 {[%emt 0:00:31]} Qxc5 {[%emt 0:00:06]} 30. cxd5 {[%emt 0:00:30]} Nxd5 {[%emt 0:00:59]} 31. Re5 {[%emt 0:05:23]} Rcd8 {[%emt 0:00:07]} 32. h4 {[%emt 0:02:01]} f6 {[%emt 0:04:25]} 33. Rh5 {[%emt 0:00:24]} Qc6 {[%emt 0:01:01]} 34. Rc1 {[%emt 0:02:07]} Qe6 {[%emt 0:01:04]} 35. Qf5 {[%emt 0:00:40]} Qxf5 {[%emt 0:00:50]} 36. Rxf5 {[%emt 0:00:05]} g6 {[%emt 0:00:16]} 0-1

[Event "EYCC Open U16 2018"]
[Site "Riga"]
[Date "2018.08.22"]
[Round "3"]
[White "Travadon, Loic"]
[Black "Lisnyak, Vladislav"]
[Result "0-1"]
[ECO "A45"]
[WhiteElo "2334"]
[BlackElo "2198"]
[Annotator "NA"]
[PlyCount "68"]
[EventDate "2018.08.20"]
[EventType "swiss"]
[EventCountry "LAT"]
[SourceTitle "playchess.com"]
[Source "ChessBase"]
[SourceQuality "1"]
[TimeControl "40/5400+30:1800+30"]

1. d4 {[%emt 0:00:00]} Nf6 {[%emt 0:00:00]} 2. Bf4 {[%emt 0:00:00]} d5 {[%emt 0:00:00]} 3. e3 {[%emt 0:00:00]} e6 {[%emt 0:01:15]} 4. Nf3 {[%emt 0:00:00]} c5 {[%emt 0:08:56]} 5. c3 {[%emt 0:00:00]} Nc6 {[%emt 0:01:44]} 6. Nbd2 {[%emt 0:00:00]} Bd6 {[%emt 0:06:19]} 7. Bg3 {[%emt 0:00:05]} O-O {[%emt 0:17:46]} 8. Bd3 {[%emt 0:00:03]} Qe7 {[%emt 0:07:09]} 9. Ne5 {[%emt 0:00:11]} Nd7 {[%emt 0:03:16]} 10. Nxd7 {[%emt 0:00:07] D02: 1 d4 d5 2 Nf3 sidelines, including 2...Nf6 3 g3 and 2...Nf6 3 Bf4} Bxd7 {[%emt 0:01:33]} (10... Qxd7 11. O-O b6 12. Bxd6 Qxd6 13. f4 f5 14. Nf3 c4 15. Bc2 b5 16. a3 a5 17. g4 Bd7 {½-½ (69) Grischuk,A (2781)-Hammer,J (2677) Stavanger 2015}) 11. Bxd6 {[%emt 0:00:05]} Qxd6 {[%emt 0:00:13]} 12. dxc5 {[%emt 0:00:05]} Qxc5 {[%emt 0:02:30]} 13. Bxh7+ {[%emt 0:00:04]} Kxh7 {[%emt 0:05:28]} 14. Qh5+ {[%emt 0:00:04]} Kg8 {[%emt 0:00:04]} 15. Ne4 {[%emt 0:00:03]} Qb5 {[%emt 0:07:02] [#]} (15... g6 $142 16. Nxc5 gxh5) 16. Ng5 $1 {[%emt 0:00:27]} Rfd8 {[%emt 0:03:20]} 17. Qxf7+ {[%emt 0:00:05]} Kh8 {[%emt 0:00:05]} 18. O-O-O $146 {[%emt 0:13:58]} Qc4 {[%emt 0:11:39]} 19. Qh5+ {[%emt 0:00:38]} Kg8 {[%emt 0:00:02]} 20. Qh7+ {[%emt 0:01:34]} Kf8 {[%emt 0:00:01]} 21. Qh8+ {[%emt 0:00:22]} Ke7 {[%emt 0:00:01]} 22. Qxg7+ {[%emt 0:00:07]} Kd6 {[%emt 0:00:07]} 23. Nf7+ {[%emt 0:00:18]} Kc7 {[%emt 0:00:31]} 24. Nxd8 {[%emt 0:01:05]} Rxd8 {[%emt 0:00:07]} 25. Kb1 {[%emt 0:05:42]} b5 {[%emt 0:02:08]} 26. h4 {[%emt 0:01:23]} e5 {[%emt 0:01:15]} 27. h5 {[%emt 0:02:01]} Kb6 {[%emt 0:01:16]} 28. h6 {[%emt 0:02:33]} d4 {[%emt 0:11:53]} 29. exd4 {[%emt 0:00:14]} Bf5+ {[%emt 0:02:40]} 30. Kc1 {[%emt 0:03:16]} Qa4 {[%emt 0:00:33]} 31. Kd2 {[%emt 0:01:16]} exd4 {[%emt 0:01:58]} 32. Ke2 {[%emt 0:00:42] [#]} Bg4+ $19 {[%emt 0:02:06]} 33. Qxg4 {[%emt 0:00:57]} d3+ {[%emt 0:00:04]} 34. Rxd3 {[%emt 0:00:37]} Qxg4+ {[%emt 0:00:05]} 0-1

[Event "EYCC Open U16 2018"]
[Site "Riga"]
[Date "2018.08.22"]
[Round "3"]
[White "Petriashvili, Nikoloz"]
[Black "Gorshtein, Ido"]
[Result "1/2-1/2"]
[ECO "B15"]
[WhiteElo "2323"]
[BlackElo "2375"]
[Annotator "NA"]
[PlyCount "68"]
[EventDate "2018.08.20"]
[EventType "swiss"]
[EventCountry "LAT"]
[SourceTitle "playchess.com"]
[Source "ChessBase"]
[SourceQuality "1"]
[TimeControl "40/5400+30:1800+30"]

1. e4 {[%emt 0:00:00]} c6 {[%emt 0:00:00]} 2. d4 {[%emt 0:00:00]} d5 {[%emt 0:00:00]} 3. Nc3 {[%emt 0:00:09]} dxe4 {[%emt 0:00:00]} 4. Nxe4 {[%emt 0:00:06]} Nf6 {[%emt 0:00:00]} 5. Nxf6+ {[%emt 0:00:35]} exf6 {[%emt 0:00:00]} 6. c3 {[%emt 0:05:11]} Bd6 {[%emt 0:00:06]} 7. Bd3 {[%emt 0:00:06]} O-O {[%emt 0:00:03]} 8. Qc2 {[%emt 0:02:38]} Re8+ {[%emt 0:00:09] B15: Caro-Kann: 3 Nc3: 3...g6 and 3...dxe4 4 Nxe4 Nf6 5 Nxf6+ exf6} 9. Ne2 {[%emt 0:00:17]} h5 {[%emt 0:00:02]} (9... g6 10. h4 Nd7 11. h5 Nf8 12. Be3 Be6 13. O-O-O a5 14. Kb1 a4 15. hxg6 fxg6 16. c4 Bf7 17. Nc3 a3 18. b3 f5 {0-1 (29) Saric,I (2669)-Jobava,B (2690) Riadh 2017}) 10. Be3 {[%emt 0:05:29] LiveBook: 22 Games} h4 {[%emt 0:01:21]} 11. Bh7+ $146 {[%emt 0:13:48]} ({Predecessor:} 11. O-O-O $14 Nd7 12. g3 h3 13. Bh7+ Kh8 14. Bf5 Nf8 15. d5 Qa5 16. Rd4 Kg8 17. Rhd1 {0-1 (46) Arvola,B (2435)-Risting,E (2295) Stavanger 2017}) 11... Kh8 $1 {[%emt 0:02:14]} 12. Bf5 {[%emt 0:00:16]} Nd7 {[%emt 0:01:48]} 13. O-O-O {[%emt 0:05:10]} Nb6 {[%emt 0:08:03]} 14. Bxc8 {[%emt 0:09:04]} Qxc8 {[%emt 0:00:03]} 15. c4 {[%emt 0:00:39]} Bc7 {[%emt 0:02:19]} 16. Kb1 {[%emt 0:15:26]} Qg4 {[%emt 0:04:10]} 17. g3 {[%emt 0:02:44]} Re7 {[%emt 0:02:04]} 18. b3 {[%emt 0:01:21]} Rae8 {[%emt 0:01:47]} 19. h3 {[%emt 0:02:16]} Qf3 {[%emt 0:00:25]} 20. g4 {[%emt 0:09:58]} Nc8 {[%emt 0:14:56]} 21. Nc3 $11 {[%emt 0:01:38]} ({Better is} 21. d5 $14) 21... Nd6 {[%emt 0:12:22]} 22. d5 {[%emt 0:02:58]} Ne4 {[%emt 0:08:33]} 23. Nxe4 {[%emt 0:00:31]} Rxe4 {[%emt 0:00:26]} 24. Qd3 {[%emt 0:06:05]} Rxe3 {[%emt 0:09:36]} 25. fxe3 {[%emt 0:00:09]} Rxe3 {[%emt 0:00:02]} 26. Qf5 {[%emt 0:01:54]} Bf4 {[%emt 0:03:55]} 27. d6 {[%emt 0:08:17]} Rxb3+ {[%emt 0:00:38]} 28. axb3 {[%emt 0:00:01]} Qxb3+ {[%emt 0:00:02]} 29. Ka1 {[%emt 0:00:01]} Qa3+ {[%emt 0:08:14]} 30. Kb1 {[%emt 0:00:03]} Qb4+ {[%emt 0:00:11]} 31. Kc2 {[%emt 0:01:13]} Qxc4+ {[%emt 0:00:05]} 32. Kb2 {[%emt 0:00:03]} Qb4+ {[%emt 0:03:36]} 33. Kc2 {[%emt 0:00:21]} Qa4+ {[%emt 0:01:25]} 34. Kb2 {[%emt 0:00:43]} Qb4+ {[%emt 0:00:13]} 1/2-1/2

[Event "EYCC Open U16 2018"]
[Site "Riga"]
[Date "2018.08.22"]
[Round "3"]
[White "Remizov, Yaroslav"]
[Black "Gatineau, Yovann"]
[Result "1-0"]
[ECO "B90"]
[WhiteElo "2317"]
[BlackElo "2368"]
[Annotator "NA"]
[PlyCount "57"]
[EventDate "2018.08.20"]
[EventType "swiss"]
[EventCountry "LAT"]
[SourceTitle "playchess.com"]
[Source "ChessBase"]
[SourceQuality "1"]
[TimeControl "40/5400+30:1800+30"]

1. e4 {[%emt 0:00:00]} c5 {[%emt 0:00:00]} 2. Nf3 {[%emt 0:00:00]} d6 {[%emt 0:00:21]} 3. d4 {[%emt 0:00:00]} Nf6 {[%emt 0:00:08]} 4. Nc3 {[%emt 0:00:01]} cxd4 {[%emt 0:00:07]} 5. Nxd4 {[%emt 0:00:14]} a6 {[%emt 0:01:02]} 6. Be3 {[%emt 0:00:30]} e5 {[%emt 0:00:29]} 7. Nb3 {[%emt 0:00:41]} Be6 {[%emt 0:00:09]} 8. Qd2 {[%emt 0:02:05]} Be7 {[%emt 0:00:29]} 9. f3 {[%emt 0:00:09]} O-O {[%emt 0:01:26]} 10. O-O-O a5 {[%emt 0:00:07]} 11. a4 {[%emt 0:10:28]} Nc6 {[%emt 0:00:07]} 12. g4 {[%emt 0:04:42]} Nb4 {[%emt 0:01:24]} 13. g5 {[%emt 0:04:54]} Nh5 {[%emt 0:00:08]} 14. Kb1 {[%emt 0:07:20]} Rc8 {[%emt 0:01:28]} 15. Rg1 $14 {[%emt 0:16:17] LiveBook: 49 Games} f5 {[%emt 0:30:23]} 16. Bh3 {[%emt 0:10:54]} b5 {[%emt 0:03:13]} 17. axb5 {[%emt 0:08:46]} a4 {[%emt 0:00:28]} 18. Nxa4 {[%emt 0:01:28]} Nxc2 {[%emt 0:00:25]} 19. Nbc5 {[%emt 0:01:04]} Qe8 {[%emt 0:31:49]} 20. Nxe6 {[%emt 0:09:33]} Qxb5 {[%emt 0:00:11]} 21. Nc3 {[%emt 0:00:54]} Na3+ {[%emt 0:00:51]} 22. Kc1 {[%emt 0:00:26]} Qb4 {[%emt 0:09:40]} 23. Bc5 {[%emt 0:08:00]} Rxc5 {[%emt 0:00:13]} 24. Nxc5 {[%emt 0:00:09]} Rc8 {[%emt 0:03:04]} 25. Na6 {[%emt 0:05:50]} Qb6 {[%emt 0:05:32]} 26. Bxf5 {[%emt 0:00:16]} Nc4 {[%emt 0:01:20]} 27. Qd5+ {[%emt 0:01:03]} Kh8 {[%emt 0:00:05]} 28. Qb5 {[%emt 0:00:12]} Qe3+ {[%emt 0:02:20]} 29. Kb1 {[%emt 0:00:04]} 1-0

[Event "EYCC Open U16 2018"]
[Site "Riga"]
[Date "2018.08.22"]
[Round "3"]
[White "Mis, Mieszko"]
[Black "Szpar, Milosz"]
[Result "1/2-1/2"]
[ECO "C67"]
[WhiteElo "2301"]
[BlackElo "2365"]
[Annotator "NA"]
[PlyCount "40"]
[EventDate "2018.08.20"]
[EventType "swiss"]
[EventCountry "LAT"]
[SourceTitle "playchess.com"]
[Source "ChessBase"]
[SourceQuality "1"]
[TimeControl "40/5400+30:1800+30"]

1. e4 {[%emt 0:00:00]} e5 {[%emt 0:00:00]} 2. Nf3 {[%emt 0:00:23]} Nc6 {[%emt 0:00:14]} 3. Bb5 {[%emt 0:00:28]} Nf6 {[%emt 0:00:45]} 4. O-O {[%emt 0:00:41]} Nxe4 {[%emt 0:00:48]} 5. Re1 {[%emt 0:01:00]} Nd6 {[%emt 0:01:03]} 6. Nxe5 {[%emt 0:00:46]} Be7 {[%emt 0:00:57]} 7. Bf1 {[%emt 0:01:21]} Nxe5 {[%emt 0:01:27]} 8. Rxe5 {[%emt 0:00:08]} O-O {[%emt 0:00:21]} 9. d4 {[%emt 0:01:39]} Bf6 {[%emt 0:01:11]} 10. Re1 {[%emt 0:01:43]} Re8 {[%emt 0:01:35] LiveBook: 232 Games} 11. Rxe8+ {[%emt 0:01:16]} Nxe8 {[%emt 0:00:38]} 12. c3 {[%emt 0:00:49]} d5 {[%emt 0:00:46]} 13. Bf4 {[%emt 0:00:23]} Bf5 {[%emt 0:01:21]} 14. Bd3 $11 {[%emt 0:01:10]} Bxd3 {[%emt 0:00:51]} 15. Qxd3 {[%emt 0:00:09]} c6 {[%emt 0:00:31]} 16. Nd2 {[%emt 0:00:26]} Nd6 {[%emt 0:00:57]} 17. Re1 {[%emt 0:01:03]} Qd7 {[%emt 0:00:12]} 18. Bxd6 {[%emt 0:00:34]} Qxd6 {[%emt 0:00:28]} 19. Qg3 {[%emt 0:00:31]} Qxg3 {[%emt 0:00:40]} 20. hxg3 {[%emt 0:00:09]} Kf8 {[%emt 0:01:00]} 1/2-1/2

[Event "EYCC Open U16 2018"]
[Site "Riga"]
[Date "2018.08.22"]
[Round "3"]
[White "Kuznecovs, Nikita"]
[Black "Oboladze, Luka"]
[Result "0-1"]
[ECO "A00"]
[WhiteElo "2280"]
[BlackElo "2349"]
[Annotator "NA"]
[PlyCount "66"]
[EventDate "2018.08.20"]
[EventType "swiss"]
[EventCountry "LAT"]
[SourceTitle "playchess.com"]
[Source "ChessBase"]
[SourceQuality "1"]
[TimeControl "40/5400+30:1800+30"]

1. g3 {[%emt 0:00:00]} c5 {[%emt 0:00:00]} 2. Bg2 {[%emt 0:00:00]} Nc6 {[%emt 0:00:04]} 3. e4 {[%emt 0:00:32]} g6 {[%emt 0:00:26]} 4. f4 {[%emt 0:01:38]} Bg7 {[%emt 0:00:19]} 5. d3 {[%emt 0:02:33]} e6 {[%emt 0:01:00]} 6. Nf3 {[%emt 0:00:28]} Nge7 {[%emt 0:00:18]} 7. O-O {[%emt 0:01:46]} O-O {[%emt 0:00:19] LiveBook: 290 Games} 8. a4 {[%emt 0:02:50] B20: Sicilian: Unusual White 2nd moves} (8. c3 d5 9. e5 d4 10. c4 f6 11. exf6 Bxf6 12. Nbd2 b6 13. Ne4 Bg7 14. Qe2 Nf5 15. Ne5 Nxe5 16. fxe5 Rb8 17. Bg5 Qc7 {1-0 (39) Nakamura,H (2775)-Kryvoruchko,Y (2707) Dubai 2014}) 8... b6 {[%emt 0:04:53]} 9. c3 {[%emt 0:03:12]} d5 {[%emt 0:08:38]} 10. Na3 {[%emt 0:04:46]} Bb7 {[%emt 0:06:00]} 11. Qe2 $146 {[%emt 0:10:22]} ({Predecessor:} 11. Qc2 Rc8 12. Rd1 Qd7 13. Be3 Nd4 14. Bxd4 cxd4 15. c4 dxe4 16. dxe4 Rfd8 {0-1 (36) Lenderman,A (2600)-Daulyte,D (2447) Reykjavik 2018}) 11... a6 {[%emt 0:13:32]} 12. Bd2 {[%emt 0:17:02]} Na5 {[%emt 0:06:35]} 13. e5 {[%emt 0:02:36]} Nb3 {[%emt 0:01:41]} 14. Ra2 {[%emt 0:14:15]} Qd7 {[%emt 0:02:41]} 15. Nc2 {[%emt 0:09:28]} Bc6 {[%emt 0:05:11]} 16. Na1 {[%emt 0:15:07]} Nxd2 {[%emt 0:02:19]} 17. Qxd2 {[%emt 0:03:22]} Bxa4 {[%emt 0:00:17]} 18. b3 {[%emt 0:01:17]} Bc6 $17 {[%emt 0:01:11]} 19. Nc2 {[%emt 0:00:02]} Bb7 {[%emt 0:06:20]} 20. d4 {[%emt 0:03:54]} Rfc8 {[%emt 0:02:27]} 21. b4 {[%emt 0:00:55]} cxb4 {[%emt 0:01:41]} 22. cxb4 {[%emt 0:01:04]} a5 {[%emt 0:02:30]} 23. bxa5 {[%emt 0:00:53]} bxa5 {[%emt 0:00:06]} 24. Nfe1 {[%emt 0:02:47]} Ba6 {[%emt 0:03:14]} 25. Rf3 {[%emt 0:00:53]} Nc6 {[%emt 0:00:55]} 26. Nd3 {[%emt 0:00:37]} Bf8 {[%emt 0:00:48]} 27. g4 {[%emt 0:00:29]} Qa7 {[%emt 0:01:27]} 28. Nde1 {[%emt 0:00:40]} Nxd4 {[%emt 0:01:45]} 29. Nxd4 {[%emt 0:00:07]} Bb4 {[%emt 0:00:07]} 30. Qe3 {[%emt 0:00:54]} Bxe1 {[%emt 0:00:40]} 31. f5 {[%emt 0:00:11]} Bc3 {[%emt 0:06:33]} 32. Ra4 {[%emt 0:00:02]} Bxd4 {[%emt 0:01:01]} 33. Rxd4 {[%emt 0:00:04]} Rc4 {[%emt 0:00:45]} 0-1

[Event "EYCC Open U16 2018"]
[Site "Riga"]
[Date "2018.08.23"]
[Round "4"]
[White "Gorshtein, Ido"]
[Black "Degraeve, Remy"]
[Result "0-1"]
[ECO "C77"]
[WhiteElo "2375"]
[BlackElo "2322"]
[Annotator "NA RC"]
[PlyCount "68"]
[EventDate "2018.08.20"]
[EventType "swiss"]
[EventCountry "LAT"]
[SourceTitle "playchess.com"]
[Source "ChessBase"]
[SourceQuality "1"]
[TimeControl "40/5400+30:1800+30"]

1. e4 {[%emt 0:00:00]} e5 {[%emt 0:00:00]} 2. Nf3 {[%emt 0:00:00]} Nc6 {[%emt 0:00:00]} 3. Bb5 {[%emt 0:00:00]} a6 {[%emt 0:00:00]} 4. Ba4 {[%emt 0:00:00]} Nf6 {[%emt 0:00:00]} 5. Nc3 {[%emt 0:00:00] LiveBook: 232 Games} Bb4 {[%emt 0:02:35]} 6. Nd5 {[%emt 0:02:43]} Bc5 {[%emt 0:01:17] C77: Ruy Lopez: 3...a6 4 Ba4 Nf6, unusual lines} (6... Ba5 7. O-O O-O 8. d3 h6 9. c3 b5 10. Bc2 d6 11. b4 Bb6 12. Nxb6 cxb6 13. a4 bxa4 14. Bxa4 {1-0 (44) Stevic,H (2600)-Plenca,J (2415) Zadar 2016}) 7. O-O {[%emt 0:00:40]} O-O {[%emt 0:04:26]} 8. d4 {[%emt 0:09:46]} Nxd4 {[%emt 0:09:04]} 9. Bg5 $146 {[%emt 0:01:57]} ({Predecessor:} 9. Nxd4 Nxd5 10. Nf5 Ne7 11. Bg5 f6 12. Bb3+ Kh8 13. Be3 d6 {0-1 (31) Blackburne,J-Zukertort,J Paris 1878}) 9... Nxf3+ {[%emt 0:01:47]} 10. Qxf3 {[%emt 0:00:09]} Be7 $1 {[%emt 0:00:20]} 11. Nxe7+ {[%emt 0:04:07]} Qxe7 {[%emt 0:00:06]} 12. Rad1 {[%emt 0:01:54]} d6 {[%emt 0:01:04]} 13. Qg3 {[%emt 0:08:50]} Qe6 {[%emt 0:13:14]} 14. Bb3 {[%emt 0:12:03]} Nxe4 {[%emt 0:01:42]} 15. Bxe6 {[%emt 0:00:02]} Nxg3 {[%emt 0:00:07]} 16. Bxf7+ {[%emt 0:00:07]} Rxf7 {[%emt 0:00:03]} 17. hxg3 {[%emt 0:00:02]} Be6 {[%emt 0:02:21]} 18. Rd2 {[%emt 0:00:21]} a5 {[%emt 0:02:15]} ({Worse is} 18... Bxa2 19. b3 $14) 19. a4 {[%emt 0:03:23]} h6 {[%emt 0:03:14]} 20. Be3 {[%emt 0:00:03]} g5 {[%emt 0:00:45]} 21. Re1 {[%emt 0:06:17]} Bd7 {[%emt 0:02:33]} 22. b3 {[%emt 0:00:50]} Kg7 {[%emt 0:00:45]} 23. f3 {[%emt 0:04:54]} Kg6 {[%emt 0:01:13]} 24. Kf2 {[%emt 0:03:20]} Bc6 {[%emt 0:01:02]} 25. Red1 {[%emt 0:03:56]} h5 {[%emt 0:01:24]} 26. c4 {[%emt 0:04:21]} Rh8 {[%emt 0:04:50]} 27. c5 $19 {[%emt 0:04:14]} d5 {[%emt 0:00:24]} 28. Re2 {[%emt 0:01:32]} d4 {[%emt 0:05:57]} 29. Bc1 {[%emt 0:00:06]} e4 {[%emt 0:00:53]} 30. f4 {[%emt 0:00:21]} d3 {[%emt 0:01:58]} 31. Rb2 {[%emt 0:01:35]} h4 {[%emt 0:01:30]} 32. Be3 {[%emt 0:00:02]} Rg8 {[%emt 0:11:48]} 33. Ke1 {[%emt 0:01:28]} gxf4 {[%emt 0:02:48]} 34. gxf4 {[%emt 0:00:13]} Kf5 {[%emt 0:00:08]} 0-1

[Event "EYCC Open U16 2018"]
[Site "Riga"]
[Date "2018.08.24"]
[Round "5"]
[White "Baenziger, Fabian"]
[Black "Lisnyak, Vladislav"]
[Result "1/2-1/2"]
[ECO "E06"]
[WhiteElo "2373"]
[BlackElo "2198"]
[Annotator "NA"]
[PlyCount "58"]
[EventDate "2018.08.20"]
[EventType "swiss"]
[EventCountry "LAT"]
[SourceTitle "playchess.com"]
[Source "ChessBase"]
[SourceQuality "1"]
[TimeControl "40/5400+30:1800+30"]

1. d4 {[%emt 0:00:00]} Nf6 {[%emt 0:00:00]} 2. c4 {[%emt 0:00:00]} e6 {[%emt 0:00:00]} 3. Nf3 {[%emt 0:00:00]} d5 {[%emt 0:00:00]} 4. g3 {[%emt 0:00:28]} Be7 {[%emt 0:00:00]} 5. Bg2 {[%emt 0:00:06]} O-O {[%emt 0:00:04]} 6. O-O {[%emt 0:00:06]} dxc4 {[%emt 0:00:06]} 7. Qc2 {[%emt 0:00:05]} a6 {[%emt 0:11:44]} 8. a4 {[%emt 0:00:32]} Bd7 {[%emt 0:08:08]} 9. Qxc4 {[%emt 0:00:08]} b5 {[%emt 0:08:03] LiveBook: 6 Games E05: Open Catalan: 5 Nf3 Be7} (9... Bc6 10. Bg5 Bd5 11. Qc2 Be4 12. Qd1 h6 13. Bxf6 Bxf6 14. Nc3 Bxf3 15. Bxf3 Qxd4 16. Bxb7 Ra7 17. Bg2 Nd7 18. Ne4 c5 19. Rb1 Qxd1 20. Rfxd1 {½-½ (43) Aronian,L (2764)-So,W (2778) Stavanger 2018}) 10. Qc2 {[%emt 0:07:43]} Bc6 {[%emt 0:02:00]} 11. Bf4 {[%emt 0:07:01]} Nd5 {[%emt 0:15:16]} 12. Ne5 {[%emt 0:01:47]} Bb7 {[%emt 0:06:09]} 13. Rc1 $146 {[%emt 0:05:08]} ({Predecessor:} 13. Bd2 Bd6 14. Nd3 Nc6 15. e3 Ncb4 16. Nxb4 Bxb4 17. Rc1 Bxd2 18. Nxd2 {1-0 (25) Lazarev,V (2445)-Passager,J (2212) Creon 2011}) 13... Bd6 {[%emt 0:09:32]} 14. Nd3 {[%emt 0:13:22]} Nc6 {[%emt 0:02:42]} 15. e3 {[%emt 0:04:41]} Ncb4 {[%emt 0:04:36]} 16. Nxb4 {[%emt 0:00:08]} Nxb4 {[%emt 0:00:11]} 17. Qb3 {[%emt 0:02:25]} Bxg2 {[%emt 0:02:28]} 18. Kxg2 {[%emt 0:04:40]} Nd5 $14 {[%emt 0:00:22]} 19. Bxd6 {[%emt 0:06:21]} cxd6 {[%emt 0:00:11]} 20. Nc3 {[%emt 0:04:07]} Nxc3 {[%emt 0:01:48]} 21. Qxc3 {[%emt 0:02:18]} Qb8 {[%emt 0:05:45]} 22. Qb4 {[%emt 0:11:36]} bxa4 {[%emt 0:10:44]} 23. Rxa4 {[%emt 0:00:29]} Qxb4 {[%emt 0:03:20]} 24. Rxb4 {[%emt 0:00:40]} a5 {[%emt 0:00:03]} 25. Ra4 {[%emt 0:00:32]} Rfb8 {[%emt 0:01:09]} 26. Rc6 {[%emt 0:00:31]} d5 {[%emt 0:02:18]} 27. Rc5 {[%emt 0:00:05]} Rxb2 {[%emt 0:00:15]} 28. Raxa5 {[%emt 0:00:04]} Rbb8 {[%emt 0:00:17]} 29. Kf3 {[%emt 0:00:27]} g6 {[%emt 0:00:58] Ke4} 1/2-1/2